bitfinex-derivatives/quotes_SOLF0:USTF0_20251018
["timestamp","ask_amount","ask_price","bid_price","bid_amount"]
[1760794350947,2.75,184.98,184.85,0.94112556]
[1760794352048,4.8656,184.93,184.85,5.80842556]
[1760794352250,7.6156,184.93,184.85,5.80842556]
[1760794354056,2.75,184.93,184.85,0.94112556]
[1760794354654,2.75,184.93,184.86,4.8671]
[1760794355553,2.75,184.93,184.87,4.8668]
[1760794357456,2.75,184.97,184.85,0.94112556]
[1760794357950,2.75,184.96,184.86,17.24]
[1760794360050,4.22700089,185.01,184.86,17.24]
[1760794360248,2.75,184.99,184.86,17.24]
[1760794360452,14.71651687,185.04,184.86,17.24]
[1760794360453,2.75,185.03,184.87,4.8667]
[1760794360756,4.22890945,185.02,184.86,17.24]
[1760794360951,4.22890945,185.01,184.86,17.24]
[1760794361259,4.22890945,185.0,184.86,17.24]
[1760794361459,2.75,184.98,184.86,17.24]
[1760794361652,2.75,185.02,184.86,17.24]
[1760794361853,2.75,185.0,184.86,17.24]
[1760794362056,7.6148,184.96,184.89,4.8663]
[1760794362557,2.75,184.96,184.9,4.8661]
[1760794362758,2.75,184.99,184.85,0.94112556]
[1760794363058,2.75,184.99,184.88,35.94]
[1760794363261,2.75,184.99,184.93,4.8653]
[1760794364753,2.75,184.99,184.94,4.865]
[1760794365059,7.6131,185.02,184.89,62.0]
[1760794365958,7.6131,185.02,184.94,4.8649]
[1760794366862,2.75,185.02,184.89,62.0]
[1760794367074,7.6826,185.04,184.89,62.0]
[1760794368057,7.6826,185.04,184.97,4.8642]
[1760794368264,4.24985905,185.03,184.97,4.8642]
[1760794368464,7.6826,185.04,184.97,4.8642]
[1760794368665,2.82,185.04,184.97,4.8642]
[1760794369163,2.82,185.04,184.89,62.0]
[1760794369164,2.82,185.02,184.94,4.8649]
[1760794370264,4.25955792,185.01,184.94,4.8649]
[1760794370465,2.82,185.02,184.94,4.8649]
[1760794370654,4.25980249,185.01,184.94,4.8649]
[1760794370859,2.82,185.02,184.94,4.8649]
[1760794371063,4.25975417,185.01,184.94,4.8649]
[1760794371257,4.26563012,185.0,184.94,4.8649]
[1760794371462,7.6833,185.02,184.94,4.8649]
[1760794371667,4.2656792,185.01,184.95,4.8648]
[1760794371863,7.0856792,185.0,184.95,4.8648]
[1760794372064,4.8626,185.04,184.93,44.82]
[1760794372265,2.82,185.02,184.93,44.82]
[1760794372466,4.26580631,185.01,184.93,44.82]
[1760794372763,4.99101687,185.08,184.93,44.82]
[1760794372967,4.27056348,185.07,184.93,44.82]
[1760794373163,4.27056348,185.06,184.93,54.5507]
[1760794373372,2.82,185.07,184.93,54.5507]
[1760794373574,4.25251463,185.06,184.93,54.5507]
[1760794373773,2.82,185.04,184.96,4.8644]
[1760794373976,4.25251463,185.03,184.96,4.8644]
[1760794374290,2.82,185.08,184.95,44.86]
[1760794374480,4.20862008,185.07,185.0,4.8634]
[1760794374673,7.6815,185.08,185.0,4.8634]
[1760794374980,4.20861901,185.07,185.0,4.8634]
[1760794375183,4.20847256,185.06,185.0,4.8634]
[1760794375478,7.6815,185.08,185.0,4.8634]
[1760794375780,4.20697017,185.07,185.0,4.8634]
[1760794375975,7.6815,185.08,185.0,4.8634]
[1760794376176,4.20699269,185.07,185.0,4.8634]
[1760794376373,7.6815,185.08,185.0,4.8634]
[1760794376775,2.82,185.06,184.98,49.764]
[1760794376973,2.82,185.06,184.98,44.9]
[1760794377678,2.82,185.06,184.99,4.8637]
[1760794379075,2.82,185.06,184.98,44.9]
[1760794379879,2.82,185.09,184.98,44.9]
[1760794380271,2.82,185.09,185.02,4.8629]
[1760794380472,2.82,185.09,185.02,49.7629]
[1760794380871,4.99101687,185.15,185.02,44.9]
[1760794381070,4.20131396,185.14,185.02,44.9]
[1760794381380,4.20131396,185.13,184.94,62.0]
[1760794381578,2.82,185.11,184.95,44.92]
[1760794381778,2.82,185.09,184.95,44.92]
[1760794381978,2.82,185.07,184.95,44.92]
[1760794382185,4.8622,185.06,184.99,4.8638]
[1760794383280,2.82,185.07,185.0,4.8634]
[1760794384580,2.82,185.07,184.91,108.58648056]
[1760794384779,2.82,185.07,185.0,62.0]
[1760794384980,2.82,185.07,185.01,44.9]
[1760794385181,7.6805,185.12,185.01,44.9]
[1760794385581,9.7164,185.21,185.02,44.92]
[1760794385582,7.679,185.18,185.02,44.92]
[1760794385777,7.679,185.18,185.03,44.92]
[1760794385979,2.82,185.18,185.03,44.92]
[1760794386378,2.82,185.18,185.11,4.8606]
[1760794386583,2.82,185.18,185.11,49.8006]
[1760794386983,2.82,185.18,185.13,4.86]
[1760794387188,4.8579,185.22,185.11,44.94]
[1760794387189,2.87,185.22,185.11,44.94]
[1760794387384,2.87,185.28,185.11,44.94]
[1760794387687,2.87,185.2,185.12,4.8603]
[1760794388880,7.7285,185.2,185.12,4.8603]
[1760794389192,4.19058654,185.26,185.11,44.94]
[1760794389386,7.7289,185.19,185.1,4.8609]
[1760794389584,7.7289,185.19,185.1,49.3809]
[1760794389891,7.7289,185.19,185.11,4.8605]
[1760794390587,7.7289,185.19,185.11,49.8005]
[1760794392585,2.87,185.19,185.11,44.94]
[1760794392790,4.96803266,185.29,185.08,44.92]
[1760794392791,2.87,185.15,185.08,44.92]
[1760794392989,2.87,185.15,185.02,62.0]
[1760794393195,2.87,185.15,185.03,44.92]
[1760794393587,2.87,185.15,185.01,9.7266]
[1760794393787,2.87,185.15,185.08,4.8613]
[1760794394592,2.87,185.15,185.08,18.9013]
[1760794395485,2.87,185.15,185.06,4.8619]
[1760794395486,7.7298,185.15,185.06,4.8619]
[1760794395691,2.87,185.22,184.96,25.9293]
[1760794395882,2.87,185.2,184.97,20.6]
[1760794396087,7.7309,185.11,185.02,4.863]
[1760794396296,7.7309,185.11,185.02,44.123]
[1760794396490,7.7309,185.11,185.02,49.783]
[1760794397388,7.7309,185.11,185.02,4.863]
[1760794397595,7.7309,185.11,185.02,49.783]
[1760794397788,14.68433266,185.21,185.0,4.8635]
[1760794397789,2.87,185.09,185.0,4.8635]
[1760794399198,2.87,185.14,184.99,44.92]
[1760794399489,4.17113332,185.13,184.98,49.7841]
[1760794399689,14.68673266,185.17,184.98,49.7841]
[1760794399690,14.68673266,185.17,184.98,4.8641]
[1760794399890,2.87,185.15,184.98,44.92]
[1760794400086,14.68673266,185.17,184.97,62.0]
[1760794400087,2.87,185.13,184.97,62.0]
[1760794400289,9.7187,185.17,184.97,62.0]
[1760794400290,4.8612,185.1,185.03,4.8626]
[1760794400794,2.87,185.12,185.02,44.92]
[1760794400989,7.7305,185.12,185.04,4.8623]
[1760794401994,2.87,185.1,185.02,4.863]
[1760794402796,7.7312,185.1,185.02,4.863]
[1760794403494,2.87,185.1,185.03,4.8626]
[1760794403695,2.87,185.1,185.0,44.94]
[1760794404198,7.73,185.14,185.0,44.94]
[1760794404892,7.73,185.14,185.05,4.8621]
[1760794408396,7.05544899,185.21,184.99,9.7275]
[1760794408706,4.18544899,185.2,185.0,44.94]
[1760794408998,4.67850502,185.24,185.1,4.8608]
[1760794408999,2.87,185.19,185.1,4.8608]
[1760794409996,4.8593,185.17,185.1,4.8608]
[1760794411100,2.87,185.19,185.11,4.8605]
[1760794411404,2.87,185.19,185.09,4.62]
[1760794411601,2.87,185.19,185.03,9.7254]
[1760794411803,2.87,185.19,185.04,106.94]
[1760794413096,2.87,185.19,185.12,4.8602]
[1760794419007,7.7288,185.19,185.12,4.8602]
[1760794419202,2.87,185.18,185.1,4.8609]
[1760794419805,2.87,185.18,185.1,49.7609]
[1760794420102,2.87,185.18,185.11,4.8605]
[1760794423106,7.729,185.18,185.11,4.8605]
[1760794424003,2.87,185.18,185.11,4.8605]
[1760794424309,2.87,185.18,185.12,4.8603]
[1760794424910,2.87,185.18,185.11,44.88]
[1760794425112,2.87,185.18,185.04,62.0]
[1760794425312,4.8579,185.22,185.04,62.0]
[1760794425513,4.8579,185.22,185.05,44.88]
[1760794425514,2.87,185.21,185.05,44.88]
[1760794425709,7.7282,185.21,185.13,4.86]
[1760794429017,7.7282,185.21,185.13,49.72]
[1760794431112,2.87,185.21,185.13,44.86]
[1760794431312,2.82,185.27,185.13,44.86]
[1760794431713,2.82,185.24,185.18,4.8587]
[1760794431912,2.82,185.24,185.13,44.86]
[1760794432311,68.02560054,185.28,185.13,44.86]
[1760794432714,2.82,185.26,185.07,9.7234]
[1760794432915,2.82,185.24,185.08,44.86]
[1760794433214,68.02560054,185.28,185.07,9.7234]
[1760794433418,2.82,185.21,185.08,44.86]
[1760794433718,2.82,185.21,185.07,9.7234]
[1760794433719,2.82,185.21,185.09,44.86]
[1760794433918,7.6782,185.21,185.13,4.86]
[1760794435417,7.6782,185.21,185.14,4.8598]
[1760794435621,2.82,185.21,185.1,62.0]
[1760794438024,2.82,185.21,185.15,4.8595]
[1760794438524,2.82,185.22,185.16,44.84]
[1760794438713,2.82,185.22,185.15,4.8595]
[1760794438919,2.82,185.21,185.15,49.6995]
[1760794441219,4.19634974,185.27,185.13,4.86]
[1760794441421,4.19634974,185.26,185.1,62.0]
[1760794441628,2.82,185.24,185.12,43.96]
[1760794441927,4.19634974,185.23,185.12,43.96]
[1760794442133,82.7182698,185.28,185.12,43.96]
[1760794442322,2.82,185.26,185.12,48.8203]
[1760794442625,4.19673073,185.25,185.12,43.96]
[1760794442827,2.82,185.23,185.12,43.96]
[1760794443718,77.73830054,185.28,185.12,43.96]
[1760794443719,2.82,185.26,185.12,43.96]
[1760794444623,2.82,185.26,185.19,4.8585]
[1760794444823,2.82,185.26,185.2,44.86]
[1760794445423,2.82,185.26,185.2,44.84]
[1760794445923,2.82,185.26,185.19,44.84]
[1760794446231,4.8569,185.26,185.19,44.84]
[1760794447030,4.8562,185.28,185.19,44.84]
[1760794447631,4.8562,185.28,185.21,4.8579]
[1760794449333,2.8,185.29,185.21,4.8579]
[1760794450433,2.8,185.29,185.22,4.8576]
[1760794450726,2.8,185.29,185.2,62.0]
[1760794450931,4.8553,185.32,185.2,62.0]
[1760794450932,7.6553,185.32,185.2,62.0]
[1760794451832,7.6553,185.32,185.23,4.8574]
[1760794453030,7.6553,185.32,185.24,4.8571]
[1760794453228,7.6553,185.32,185.25,44.82]
[1760794453537,2.8,185.32,185.25,44.82]
[1760794453838,2.8,185.32,185.25,49.6769]
[1760794454726,2.8,185.32,185.26,4.8566]
[1760794454935,2.8,185.35,185.25,44.82]
[1760794455126,4.97996926,185.4,185.25,44.82]
[1760794455127,2.8,185.4,185.25,44.82]
[1760794455334,10.02734611,185.46,185.25,44.82]
[1760794455335,2.8,185.38,185.28,4.8562]
[1760794455533,2.8,185.38,185.25,44.82]
[1760794455936,2.8,185.38,185.32,4.855]
[1760794456238,2.8,185.38,185.33,44.84]
[1760794456738,2.7,185.41,185.33,49.6948]
[1760794457929,2.7,185.41,185.34,4.8545]
[1760794458533,7.5521,185.44,185.34,4.8545]
[1760794458931,7.5521,185.44,185.35,4.8542]
[1760794460937,7.5521,185.44,185.33,44.84]
[1760794460938,2.7,185.44,185.36,4.8539]
[1760794461133,2.7,185.44,185.37,44.82]
[1760794461438,2.7,185.49,185.38,13.18]
[1760794461641,2.7,185.54,185.38,13.18]
[1760794461842,2.7,185.52,185.38,13.18]
[1760794462152,2.7,185.49,185.38,13.18]
[1760794462530,2.7,185.49,185.37,62.0]
[1760794462531,4.17987705,185.54,185.37,62.0]
[1760794462740,2.7,185.52,185.39,44.82]
[1760794462942,4.17987705,185.53,185.39,44.82]
[1760794462943,4.851,185.49,185.39,44.82]
[1760794463242,2.7,185.48,185.39,44.82]
[1760794463440,2.7,185.48,185.37,62.0]
[1760794463642,2.7,185.48,185.4,4.8529]
[1760794465240,2.7,185.48,185.42,4.8526]
[1760794466237,2.7,185.51,185.42,4.8526]
[1760794466443,2.7,185.51,185.43,4.8521]
[1760794466644,2.7,185.51,185.44,44.8]
[1760794466945,2.7,185.57,185.44,44.8]
[1760794467540,2.7,185.57,185.38,25.9072]
[1760794467839,2.7,185.57,185.39,61.02]
[1760794468551,2.7,185.57,185.49,4.8505]
[1760794468747,2.7,185.57,185.5,44.82]
[1760794469046,4.8484,185.59,185.5,44.82]
[1760794470050,4.8484,185.59,185.51,62.0]
[1760794470238,2.7,185.58,185.51,62.0]
[1760794471148,7.5486,185.58,185.52,44.8]
[1760794471647,2.7,185.58,185.52,44.8]
[1760794471942,2.7,185.58,185.41,16.2]
[1760794472146,2.7,185.59,185.42,61.0]
[1760794473142,2.7,185.59,185.51,4.85]
[1760794473454,2.7,185.59,185.52,44.8]
[1760794474043,2.7,185.59,185.51,4.85]
[1760794474248,2.7,185.59,185.53,44.8]
[1760794474447,2.7,185.58,185.4,25.9059]
[1760794474668,2.7,185.58,185.41,44.8]
[1760794475944,2.7,185.57,185.42,44.8]
[1760794476152,4.8486,185.58,185.42,44.8]
[1760794476347,4.849,185.56,185.45,4.8517]
[1760794476561,2.7,185.55,185.46,44.8]
[1760794476745,2.7,185.63,185.46,44.8]
[1760794477047,2.7,185.61,185.47,35.56]
[1760794477253,2.7,185.53,185.47,35.56]
[1760794477449,2.7,185.58,185.39,62.0]
[1760794477754,4.13720745,185.57,185.4,44.82]
[1760794477953,4.13720745,185.56,185.4,44.82]
[1760794478151,2.7,185.54,185.4,44.82]
[1760794478354,4.13654497,185.53,185.38,139.64]
[1760794478648,2.7,185.56,185.39,44.82]
[1760794478850,2.7,185.54,185.39,44.82]
[1760794479043,2.7,185.46,185.39,44.82]
[1760794479350,2.7,185.46,185.38,139.64]
[1760794479555,4.13800513,185.55,185.4,49.673]
[1760794479754,2.7,185.54,185.4,44.82]
[1760794480053,2.7,185.54,185.46,4.8513]
[1760794480243,2.7,185.54,185.47,44.88]
[1760794480442,2.7,185.54,185.48,44.88]
[1760794480743,2.7,185.53,185.43,4.8521]
[1760794480951,2.7,185.53,185.44,44.88]
[1760794481855,2.7,185.53,185.45,44.9]
[1760794482051,7.5499,185.53,185.45,44.9]
[1760794482650,7.5499,185.53,185.46,44.88]
[1760794485054,4.8501,185.52,185.46,44.88]
[1760794486659,4.8495,185.54,185.46,44.88]
[1760794487158,4.8495,185.54,185.46,49.7313]
[1760794487658,4.849,185.56,185.47,4.8511]
[1760794492159,4.849,185.56,185.48,44.86]
[1760794492361,4.849,185.56,185.47,4.8511]
[1760794492756,2.63,185.55,185.48,44.36]
[1760794492957,2.63,185.55,185.49,44.86]
[1760794493665,2.63,185.55,185.41,62.0]
[1760794493860,2.63,185.55,185.42,44.84]
[1760794494060,2.63,185.55,185.41,62.0]
[1760794494561,7.4794,185.55,185.45,4.8516]
[1760794494865,2.63,185.53,185.46,44.36]
[1760794495163,4.8501,185.52,185.43,4.8522]
[1760794495560,2.63,185.5,185.41,66.8527]
[1760794495755,2.63,185.5,185.42,44.86]
[1760794496061,2.63,185.5,185.43,44.86]
[1760794496361,2.63,185.48,185.4,44.84]
[1760794497059,2.63,185.46,185.38,44.86]
[1760794497667,2.63,185.51,185.38,44.86]
[1760794497963,2.63,185.49,185.39,44.7]
[1760794498156,4.17606752,185.48,185.4,44.7]
[1760794498352,2.63,185.49,185.29,25.912]
[1760794498556,2.63,185.47,185.3,44.86]
[1760794498754,2.63,185.47,185.31,44.86]
[1760794499167,2.63,185.47,185.32,62.0]
[1760794499865,7.4814,185.47,185.38,4.8535]
[1760794500061,4.18376216,185.46,185.38,4.8535]
[1760794500263,7.4814,185.47,185.39,44.86]
[1760794500460,4.18623275,185.46,185.39,44.86]
[1760794500666,7.4814,185.47,185.38,4.8535]
[1760794500961,9.03802937,185.46,185.39,44.86]
[1760794501163,4.18632937,185.45,185.32,62.0]
[1760794501383,4.8517,185.46,185.33,44.86]
[1760794501563,4.18886677,185.45,185.32,62.0]
[1760794501867,4.8517,185.46,185.33,44.86]
[1760794502169,4.8517,185.46,185.38,4.8535]
[1760794503167,4.8517,185.46,185.39,4.8532]
[1760794503763,2.63,185.47,185.39,4.8532]
[1760794504066,4.19321741,185.46,185.39,4.8532]
[1760794504264,2.63,185.47,185.39,4.8532]
[1760794504568,4.1949757,185.46,185.39,4.8532]
[1760794504867,2.63,185.47,185.39,4.8532]
[1760794505065,4.1949757,185.46,185.33,44.86]
[1760794505265,2.63,185.43,185.35,4.8543]
[1760794505566,2.63,185.43,185.34,44.84]
[1760794506167,2.63,185.43,185.37,4.8537]
[1760794506370,2.63,185.43,185.34,44.84]
[1760794506964,2.68,185.47,185.32,62.0]
[1760794507163,4.19739816,185.46,185.33,44.86]
[1760794507363,4.19739816,185.45,185.32,62.0]
[1760794507570,6.87739816,185.44,185.33,44.86]
[1760794507769,4.91736636,185.48,185.33,44.86]
[1760794507970,4.8527,185.42,185.33,49.7149]
[1760794508167,2.68,185.4,185.19,9.7169]
[1760794508367,6.59341282,185.47,185.2,44.88]
[1760794508368,4.91736636,185.44,185.2,44.88]
[1760794508586,2.68,185.35,185.2,44.88]
[1760794508768,4.91736636,185.41,185.2,44.88]
[1760794509074,2.68,185.39,185.2,44.88]
[1760794509275,2.68,185.32,185.2,44.88]
[1760794509570,2.68,185.38,185.2,44.88]
[1760794509773,2.68,185.35,185.23,4.8574]
[1760794510269,4.8548,185.34,185.24,4.8571]
[1760794511168,2.68,185.33,185.24,4.8571]
[1760794511968,2.68,185.33,185.24,49.7971]
[1760794513176,7.5342,185.36,185.26,4.8567]
[1760794513474,14.62246636,185.43,185.24,44.94]
[1760794513675,4.17057604,185.42,185.24,44.94]
[1760794513875,4.17057604,185.41,185.24,44.94]
[1760794514071,2.68,185.39,185.24,44.94]
[1760794514272,14.62246636,185.43,185.24,44.94]
[1760794514273,2.68,185.41,185.24,44.94]
[1760794514473,2.68,185.39,185.24,44.94]
[1760794514773,2.68,185.41,185.24,44.94]
[1760794514968,2.68,185.32,185.24,49.7971]
[1760794515370,2.68,185.32,185.24,44.94]
[1760794515571,9.7054,185.42,185.24,44.94]
[1760794515572,4.16581955,185.41,185.24,44.94]
[1760794515774,2.68,185.39,185.24,44.94]
[1760794515969,2.68,185.37,185.24,44.94]
[1760794516169,2.68,185.35,185.24,44.94]
[1760794517075,4.8547,185.34,185.24,49.7971]
[1760794517464,2.63,185.41,185.24,49.7971]
[1760794517670,2.63,185.39,185.24,49.7971]
[1760794517869,2.63,185.41,185.24,49.7971]
[1760794518071,4.163206,185.4,185.24,49.7971]
[1760794518272,4.163206,185.39,185.24,49.7971]
[1760794518477,2.63,185.41,185.24,49.7971]
[1760794518678,2.63,185.31,185.24,49.7971]
[1760794518996,2.63,185.31,185.24,44.94]
[1760794520979,4.8552,185.32,185.24,44.94]
[1760794521375,4.8558,185.3,185.24,44.94]
[1760794522678,2.63,185.28,185.24,44.94]
[1760794523074,4.8564,185.28,185.24,44.94]
[1760794523280,7.4864,185.28,185.24,44.94]
[1760794523677,2.63,185.27,185.24,44.94]
[1760794524481,4.857,185.26,185.24,44.94]
[1760794525073,7.487,185.26,185.18,49.8186]
[1760794525271,4.8563,185.28,185.19,4.8583]
[1760794525676,2.63,185.3,185.18,44.96]
[1760794525976,2.63,185.37,185.21,4.8579]
[1760794526171,4.15605561,185.36,185.21,4.8579]
[1760794526377,2.63,185.34,185.19,4.8585]
[1760794526579,9.7077,185.38,185.19,4.8585]
[1760794526776,2.63,185.36,185.19,4.8585]
[1760794527081,4.8562,185.29,185.2,4.8581]
[1760794527580,4.8564,185.28,185.2,4.8581]
[1760794528782,4.8558,185.3,185.18,44.96]
[1760794529883,4.8558,185.3,185.22,4.8576]
[1760794531284,2.63,185.29,185.16,62.0]
[1760794531488,2.63,185.29,185.17,44.98]
[1760794533088,4.8567,185.27,185.18,4.8588]
[1760794533498,4.15462582,185.35,185.18,4.8588]
[1760794533784,2.63,185.32,185.18,4.8588]
[1760794533979,4.857,185.26,185.18,4.8588]
[1760794534382,2.63,185.27,185.17,44.98]
[1760794535986,7.4865,185.27,185.19,4.8584]
[1760794537694,4.856,185.29,185.2,4.8582]
[1760794538196,4.856,185.29,185.22,4.8578]
[1760794538394,7.4855,185.31,185.23,44.98]
[1760794540094,7.4855,185.31,185.24,4.8571]
[1760794541306,4.8555,185.31,185.24,4.8571]
[1760794541901,4.8555,185.31,185.25,4.8569]
[1760794542297,7.4855,185.31,185.25,4.8569]
[1760794543897,4.855,185.33,185.23,44.98]
[1760794545001,4.855,185.33,185.27,4.8564]
[1760794547205,4.855,185.33,185.25,4.8569]
[1760794547395,4.18669299,185.32,185.16,62.0]
[1760794547698,2.87,185.31,185.23,4.8574]
[1760794547903,2.87,185.31,185.24,44.94]
[1760794549906,7.7256,185.31,185.24,44.94]
[1760794550097,7.7256,185.31,185.24,49.7971]
[1760794552207,4.20704169,185.3,185.24,49.7971]
[1760794552405,7.7256,185.31,185.24,49.7971]
[1760794553909,2.87,185.29,185.24,44.94]
[1760794554103,2.87,185.3,185.24,44.94]
[1760794554297,2.87,185.28,185.24,44.94]
[1760794556008,4.8561,185.29,185.24,44.94]
[1760794556208,2.87,185.28,185.24,44.94]
[1760794559907,4.8555,185.31,185.23,4.8573]
[1760794560110,4.8555,185.31,185.24,44.88]
[1760794560807,4.8559,185.3,185.24,44.88]
[1760794561009,2.87,185.33,185.24,44.88]
[1760794561312,2.87,185.31,185.24,44.88]
[1760794561513,4.21113068,185.3,185.24,44.88]
[1760794561715,4.8555,185.31,185.24,44.88]
[1760794562715,4.8559,185.3,185.24,44.88]
[1760794562917,7.86435686,185.34,185.24,44.88]
[1760794563112,4.21201214,185.33,185.24,44.88]
[1760794563317,2.87,185.31,185.24,44.88]
[1760794563516,4.21201214,185.3,185.24,44.88]
[1760794563812,4.21186284,185.29,185.16,62.0]
[1760794564013,2.87,185.27,185.15,94.20578699]
[1760794564217,4.21186284,185.26,185.17,44.92]
[1760794564410,4.858,185.22,185.17,44.92]
[1760794564611,2.87,185.21,185.17,44.92]
[1760794564812,2.87,185.27,185.17,44.92]
[1760794565109,2.87,185.25,185.17,44.92]
[1760794565314,2.87,185.23,185.17,44.92]
[1760794565711,2.61,185.21,185.17,44.92]
[1760794566313,4.8585,185.2,185.17,44.92]
[1760794566717,7.4685,185.2,185.17,44.92]
[1760794567017,2.61,185.19,185.17,44.92]
[1760794567218,4.8588,185.19,185.11,4.8606]
[1760794567411,4.8588,185.19,185.12,44.92]
[1760794567618,4.8588,185.19,185.12,49.7802]
[1760794568421,4.8588,185.19,185.12,44.92]
[1760794568620,2.61,185.2,185.12,44.92]
[1760794570015,4.8587,185.19,185.12,44.92]
[1760794570216,4.99435686,185.26,185.12,44.92]
[1760794570422,2.61,185.24,185.12,44.92]
[1760794570642,2.61,185.15,185.12,44.92]
[1760794571217,4.8594,185.16,185.12,44.92]
[1760794571416,7.4689,185.18,185.12,44.92]
[1760794572821,4.8589,185.18,185.12,44.92]
[1760794573618,4.8584,185.2,185.12,44.92]
[1760794574124,4.8579,185.22,185.13,4.8599]
[1760794575123,2.61,185.21,185.12,106.92]
[1760794575322,2.61,185.21,185.12,44.92]
[1760794576224,2.63,185.25,185.13,4.8601]
[1760794577526,2.63,185.3,185.12,44.92]
[1760794578028,4.8563,185.28,185.21,4.8579]
[1760794578226,2.63,185.3,185.21,49.7979]
[1760794578528,65.85640163,185.36,185.21,44.94]
[1760794578529,4.8552,185.32,185.21,44.94]
[1760794578720,65.85640163,185.36,185.21,44.94]
[1760794578921,4.18986332,185.35,185.21,44.94]
[1760794579123,2.63,185.33,185.21,44.94]
[1760794579323,4.8563,185.28,185.21,44.94]
[1760794579523,4.18957544,185.34,185.16,44.98]
[1760794579727,80.52165686,185.32,185.1,94.34316242]
[1760794580028,7.62435686,185.3,185.11,44.98]
[1760794580327,4.18834186,185.29,185.11,44.98]
[1760794580524,2.63,185.27,185.11,44.98]
[1760794580719,2.63,185.25,185.11,44.98]
[1760794580920,4.41238983,185.29,185.11,44.98]
[1760794581125,4.99435686,185.3,185.12,4.8604]
[1760794581126,4.8586,185.2,185.12,4.8604]
[1760794581624,4.8588,185.19,185.11,44.98]
[1760794582429,4.8588,185.19,185.11,49.8405]
[1760794583025,4.8591,185.18,185.11,44.98]
[1760794584026,4.8594,185.16,185.1,94.34316242]
[1760794584232,4.8594,185.16,185.1,139.32316242]
[1760794585429,4.8589,185.18,185.1,139.32316242]
[1760794586130,4.8593,185.17,185.1,139.32316242]
[1760794587431,4.8596,185.16,185.1,94.34316242]
[1760794587733,2.63,185.23,185.1,139.32316242]
[1760794587926,7.4898,185.15,185.1,139.32316242]
[1760794588731,4.8592,185.17,185.1,139.32316242]
[1760794588930,2.63,185.19,185.1,139.32316242]
[1760794589132,75.5273,185.32,185.11,4.8605]
[1760794589133,2.63,185.24,185.11,4.8605]
[1760794590034,4.8586,185.19,185.11,4.8605]
[1760794590429,2.63,185.24,185.1,139.32316242]
[1760794592041,4.8581,185.21,185.13,4.8599]
[1760794592223,4.18464347,185.27,185.14,44.98]
[1760794592431,2.63,185.28,185.14,44.98]
[1760794592828,4.8565,185.27,185.19,4.8584]
[1760794593035,4.8565,185.27,185.2,45.0]